[Event "POR-ch Women 2018"]
[Site "Braga"]
[Date "2018.09.04"]
[Round "4"]
[White "Pintor, Ariana"]
[Black "Soares, Sara Joana De Moura"]
[Result "1-0"]
[ECO "C68"]
[WhiteElo "1928"]
[BlackElo "1431"]
[Annotator "NA RC"]
[PlyCount "59"]
[EventDate "2018.09.02"]
[EventType "tourn"]
[EventCountry "POR"]
[SourceTitle "playchess.com"]
[Source "ChessBase"]
[SourceQuality "1"]
[TimeControl "5400+30"]

1. e4 {[%emt 0:00:00]} e5 {[%emt 0:00:00]} 2. Nf3 {[%emt 0:00:00]} Nc6 {[%emt 0:00:00]} 3. Bb5 {[%emt 0:00:00]} a6 {[%emt 0:00:07]} 4. Bxc6 dxc6 {[%emt 0:00:02]} 5. O-O {[%emt 0:00:12]} Bg4 {[%emt 0:00:46]} 6. h3 {[%emt 0:00:12]} Bh5 {[%emt 0:00:08]} 7. d3 {[%emt 0:00:44]} f6 {[%emt 0:00:40] C68: Spanische Partie (Abtauschvariante)} 8. Be3 {[%emt 0:01:06]} (8. Nbd2 Bd6 9. Re1 Ne7 10. Nf1 O-O 11. Ng3 Bf7 12. Be3 {½-½ (12) Saric,A (2543)-Brkic,A (2598) Jahorina 2018}) 8... Bd6 {[%emt 0:02:02]} 9. d4 {[%emt 0:02:05]} exd4 10. Bxd4 {[%emt 0:00:09]} c5 {[%emt 0:07:01]} 11. Bc3 {[%emt 0:03:17]} Ne7 {[%emt 0:02:33]} 12. Nbd2 {[%emt 0:01:59]} Nc6 {[%emt 0:05:50]} 13. Nc4 {[%emt 0:04:30]} Be7 $146 {[%emt 0:03:34]} ({Vorgänger:} 13... Qe7 14. Qd3 O-O-O 15. e5 {0-1 (53) Stevens,L (2078)-Kaufman,L (2413) Irvine 2010}) 14. Re1 {[%emt 0:03:25]} O-O {[%emt 0:02:53]} 15. g4 {[%emt 0:09:24]} Bf7 {[%emt 0:03:04]} 16. Ne3 {[%emt 0:00:21]} Re8 {[%emt 0:02:04]} 17. Nf5 {[%emt 0:10:26]} Bf8 {[%emt 0:09:20]} 18. e5 {[%emt 0:03:18]} fxe5 {[%emt 0:11:07]} 19. Nxe5 {[%emt 0:11:09]} Bd5 {[%emt 0:01:22]} 20. Qd2 {[%emt 0:01:57]} Nxe5 {[%emt 0:05:38]} 21. Bxe5 {[%emt 0:00:22]} c6 {[%emt 0:01:04]} 22. Qf4 {[%emt 0:08:21]} Qd7 {[%emt 0:12:58]} 23. Rad1 {[%emt 0:04:45]} Qf7 {[%emt 0:00:42]} 24. Rd3 {[%emt 0:03:37]} Rad8 {[%emt 0:03:37]} 25. c4 {[%emt 0:03:05]} Bxc4 {[%emt 0:09:06]} 26. Rxd8 {[%emt 0:00:15]} Rxd8 {[%emt 0:00:06]} 27. Qg5 {[%emt 0:00:09]} Qd7 $18 {[%emt 0:04:21]} 28. Bxg7 {[%emt 0:02:27]} Bxg7 {[%emt 0:01:20]} 29. Re7 {[%emt 0:00:16]} Qd1+ {[%emt 0:02:51]} 30. Kh2 {[%emt 0:00:06]} 1-0

[Event "POR-ch Women 2018"]
[Site "Braga"]
[Date "2018.09.04"]
[Round "4"]
[White "Silva, Mariana Sofia T"]
[Black "Pipiras, Filipa Fortuna"]
[Result "1/2-1/2"]
[ECO "C55"]
[WhiteElo "1924"]
[BlackElo "1803"]
[Annotator "NA RC"]
[PlyCount "112"]
[EventDate "2018.09.02"]
[EventType "tourn"]
[EventCountry "POR"]
[SourceTitle "playchess.com"]
[Source "ChessBase"]
[SourceQuality "1"]
[TimeControl "5400+30"]

1. e4 {[%emt 0:00:00]} e5 {[%emt 0:00:14]} 2. Nf3 {[%emt 0:00:00]} Nc6 {[%emt 0:00:43]} 3. Bc4 {[%emt 0:00:00]} Nf6 {[%emt 0:01:39]} 4. d3 {[%emt 0:00:42]} Be7 {[%emt 0:02:12]} 5. O-O {[%emt 0:00:29]} d6 {[%emt 0:00:56]} 6. Re1 {[%emt 0:05:45]} O-O {[%emt 0:01:01]} 7. c3 {[%emt 0:03:16]} Na5 {[%emt 0:01:38]} 8. Bb5 {[%emt 0:03:20]} a6 {[%emt 0:01:30]} 9. Ba4 {[%emt 0:00:08]} b5 {[%emt 0:01:20]} 10. Bc2 {[%emt 0:00:13]} c5 {[%emt 0:01:14]} 11. Nbd2 {[%emt 0:06:00]} Nc6 {[%emt 0:03:02]} 12. a4 {[%emt 0:07:08]} Rb8 {[%emt 0:06:26] C90: Spanische Partie (Abweichungen von der Hauptvariante)} (12... b4 13. Nc4 Be6 14. Ne3 bxc3 15. bxc3 Rb8 16. d4 cxd4 17. cxd4 exd4 18. Nxd4 Nxd4 19. Qxd4 Qc7 20. Ba3 {½-½ (71) Inarkiev,E (2693)-Smirnov,P (2610) Novosibirsk 2012}) 13. axb5 {[%emt 0:03:23]} axb5 {[%emt 0:00:45]} 14. Nf1 {[%emt 0:03:22]} Nd7 {[%emt 0:07:15]} 15. Ne3 {[%emt 0:05:29]} Nb6 {[%emt 0:01:26]} 16. h3 $146 ({Vorgänger:} 16. Bb3 Qc7 17. h3 Bd7 18. Nd5 Nxd5 19. exd5 {1-0 (57) Sammed Jaykumar,S (2267)-Akash Pc,I (2243) Dindigul 2015}) 16... Qc7 {[%emt 0:02:18]} 17. Qe2 {[%emt 0:17:08]} b4 {[%emt 0:05:35]} 18. Bd2 {[%emt 0:03:17]} bxc3 {[%emt 0:00:55]} 19. bxc3 {[%emt 0:00:02]} Be6 20. Reb1 {[%emt 0:03:17]} Ra8 {[%emt 0:06:56]} 21. Nh2 {[%emt 0:05:48]} Rfc8 {[%emt 0:16:40]} 22. Nhg4 {[%emt 0:05:01]} Rxa1 {[%emt 0:04:37]} 23. Rxa1 {[%emt 0:00:06]} Qb7 {[%emt 0:00:48]} 24. Qf3 {[%emt 0:06:35]} Bg5 {[%emt 0:11:10]} 25. Rb1 Qa6 26. h4 {[%emt 0:13:53]} Be7 {[%emt 0:08:03]} 27. Nd5 {[%emt 0:01:02]} Nd7 {[%emt 0:02:44]} 28. Qg3 {[%emt 0:03:03]} Bxg4 {[%emt 0:02:19]} 29. Qxg4 {[%emt 0:00:04]} Nf6 {[%emt 0:00:10]} 30. Nxf6+ {[%emt 0:02:11]} Bxf6 {[%emt 0:00:39]} 31. h5 {[%emt 0:00:39]} Ne7 {[%emt 0:00:39]} 32. Bg5 {[%emt 0:02:03]} Bxg5 {[%emt 0:05:27]} 33. Qxg5 {[%emt 0:00:01]} Qa7 {[%emt 0:00:34]} 34. Bd1 {[%emt 0:01:21]} h6 {[%emt 0:00:28]} 35. Qh4 {[%emt 0:00:50]} Nc6 {[%emt 0:00:34]} 36. Bg4 {[%emt 0:00:48]} Rb8 {[%emt 0:00:35]} 37. Rxb8+ {[%emt 0:00:36]} Qxb8 {[%emt 0:00:02]} 38. Bd7 {[%emt 0:00:33]} Qd8 {[%emt 0:01:36]} 39. Qg4 {[%emt 0:00:39]} Ne7 {[%emt 0:00:15]} 40. Bb5 {[%emt 0:00:41]} Qc7 {[%emt 0:00:37]} 41. Bc4 {[%emt 0:00:27]} Qa7 {[%emt 0:01:26]} 42. Qf3 {[%emt 0:00:36]} Nc6 {[%emt 0:00:26]} 43. Qf5 {[%emt 0:00:41]} Qc7 {[%emt 0:00:24]} 44. Bd5 {[%emt 0:00:41]} Na5 {[%emt 0:00:46]} 45. Qf3 {[%emt 0:00:29]} c4 {[%emt 0:00:45]} (45... Nc6 $11) 46. dxc4 {[%emt 0:00:22]} (46. Qd1 $16) 46... Nxc4 {[%emt 0:00:04]} 47. Qd3 {[%emt 0:00:26]} Nb6 {[%emt 0:00:08]} 48. Bb3 {[%emt 0:00:34]} Nd7 {[%emt 0:00:16]} 49. Qb5 {[%emt 0:00:41]} Nf6 {[%emt 0:00:51]} 50. Qa4 {[%emt 0:00:28]} ({Besser ist} 50. f3 $15) 50... Qxc3 {[%emt 0:00:21]} 51. Qa8+ {[%emt 0:00:35]} (51. f3 $17 {was necessary.}) 51... Kh7 {[%emt 0:00:09]} 52. Bxf7 $2 {[%emt 0:00:23]} (52. Qa2) 52... Qc1+ {[%emt 0:00:17]} 53. Kh2 {[%emt 0:00:05]} Qf4+ {[%emt 0:00:06]} 54. Kg1 $11 {[%emt 0:00:06]} Qc1+ {[%emt 0:00:04]} 55. Kh2 {[%emt 0:00:04]} Qf4+ {[%emt 0:00:03]} 56. Kg1 {[%emt 0:00:04]} Qc1+ 1/2-1/2

[Event "POR-ch Women 2018"]
[Site "Braga"]
[Date "2018.09.04"]
[Round "4"]
[White "Silva, Ana Ines Teixeira D"]
[Black "Oliveira, Maria Alice Ramos M"]
[Result "1/2-1/2"]
[ECO "B26"]
[WhiteElo "1890"]
[BlackElo "1572"]
[Annotator "NA RC"]
[PlyCount "82"]
[EventDate "2018.09.02"]
[EventType "tourn"]
[EventCountry "POR"]
[SourceTitle "playchess.com"]
[Source "ChessBase"]
[SourceQuality "1"]
[TimeControl "5400+30"]

1. e4 {[%emt 0:00:00]} c5 {[%emt 0:01:40]} 2. Nc3 {[%emt 0:00:00]} Nc6 {[%emt 0:00:07]} 3. g3 {[%emt 0:00:00]} g6 {[%emt 0:00:13]} 4. Bg2 {[%emt 0:00:05]} Bg7 {[%emt 0:00:21]} 5. d3 {[%emt 0:00:11]} d6 {[%emt 0:00:54]} 6. Be3 {[%emt 0:00:35]} Nf6 {[%emt 0:00:25]} 7. h3 {[%emt 0:00:18]} O-O {[%emt 0:00:56]} 8. Qd2 {[%emt 0:00:42]} Rb8 {[%emt 0:00:31]} 9. Nge2 {[%emt 0:01:07]} b5 {[%emt 0:03:49]} 10. O-O {[%emt 0:01:43]} b4 {[%emt 0:01:51]} 11. Nd1 {[%emt 0:00:18]} a5 {[%emt 0:09:55]} 12. f4 {[%emt 0:02:02] B26: Closed Sicilian: 3 g3, lines with early Be3} Qc7 {[%emt 0:02:30]} (12... Nd7 13. h4 Ba6 14. h5 gxh5 15. Rb1 Kh8 16. Nf2 Rg8 17. Nh3 Nd4 18. Ng5 Qf8 19. e5 h6 {0-1 (43) Ghaem Maghami,E (2579)-Najer,E (2681) Germany 2009}) 13. f5 {[%emt 0:09:45]} a4 {[%emt 0:07:22]} 14. Bh6 {[%emt 0:06:22]} b3 $146 {[%emt 0:11:05]} ({Predecessor:} 14... Nd7 15. Bxg7 Kxg7 16. Nf4 Nb6 17. Ne3 Ne5 18. Nfd5 Nxd5 19. Nxd5 Qa7 {1-0 (49) Schneider,J (1788)-Ragot Gaufreteau,M (1503) Budva 2013}) 15. axb3 {[%emt 0:05:28]} axb3 {[%emt 0:00:09]} 16. c3 {[%emt 0:00:14]} Bb7 {[%emt 0:01:53]} 17. Bxg7 {[%emt 0:10:25]} Kxg7 {[%emt 0:00:06]} 18. Ne3 {[%emt 0:01:05]} Ra8 {[%emt 0:08:02]} 19. Rxa8 {[%emt 0:01:28]} Rxa8 {[%emt 0:00:32]} 20. g4 {[%emt 0:01:45]} Ra2 {[%emt 0:27:53] [#]} 21. g5 $1 {[%emt 0:19:28]} Nd7 {[%emt 0:00:08]} 22. Nd5 {[%emt 0:08:02]} Qd8 {[%emt 0:00:05]} 23. Nef4 {[%emt 0:07:56]} Nce5 {[%emt 0:04:57] [#]} 24. h4 $16 {[%emt 0:13:58]} (24. Nxe7 $1 $18 {[%mdl 512] und der Rest ist Schweigen.} Nb6 (24... Qxe7 25. f6+) 25. Rb1) 24... Bxd5 {[%emt 0:01:10]} 25. Nxd5 {[%emt 0:00:11]} c4 {[%emt 0:10:52]} 26. dxc4 {[%emt 0:04:27]} Nxc4 {[%emt 0:00:53]} 27. Qd4+ {[%emt 0:00:54]} Nde5 {[%emt 0:01:10]} 28. Rf2 {[%emt 0:03:31]} Rxb2 {[%emt 0:03:08]} 29. Rxb2 {[%emt 0:00:14]} Nxb2 {[%emt 0:00:05]} 30. Qb4 {[%emt 0:01:34]} Nbd3 {[%emt 0:01:22]} 31. Qxb3 {[%emt 0:00:23]} Qd7 {[%emt 0:00:47]} 32. f6+ {[%emt 0:00:48]} exf6 {[%emt 0:00:26]} 33. gxf6+ {[%emt 0:00:06]} Kh6 {[%emt 0:00:32]} 34. Qd1 {[%emt 0:00:44]} Qa7+ {[%emt 0:00:25]} 35. Kh2 {[%emt 0:00:25]} Qf2 {[%emt 0:00:35]} 36. Qf1 {[%emt 0:01:06]} Qxh4+ {[%emt 0:00:20]} 37. Kg1 {[%emt 0:00:16]} Ng4 {[%emt 0:00:19]} 38. Qxd3 {[%emt 0:00:30]} Qf2+ {[%emt 0:00:37]} 39. Kh1 {[%emt 0:00:12]} Qh4+ {[%emt 0:00:21]} 40. Kg1 {[%emt 0:00:36]} Qf2+ {[%emt 0:00:21]} 41. Kh1 {[%emt 0:00:05]} Qh4+ {[%emt 0:00:42]} 1/2-1/2

[Event "POR-ch Women 2018"]
[Site "Braga"]
[Date "2018.09.04"]
[Round "4"]
[White "Oliveira, Maria Elisa Ramos M"]
[Black "Areal, Maria Beatriz Moura"]
[Result "0-1"]
[ECO "C42"]
[WhiteElo "1333"]
[BlackElo "1051"]
[Annotator "NA RC"]
[PlyCount "118"]
[EventDate "2018.09.02"]
[EventType "tourn"]
[EventCountry "POR"]
[SourceTitle "playchess.com"]
[Source "ChessBase"]
[SourceQuality "1"]
[TimeControl "5400+30"]

1. e4 e5 2. Nf3 Nf6 3. Nxe5 d6 4. Nf3 Nxe4 5. d3 Nf6 6. Be3 Be7 7. Be2 O-O 8. O-O Nc6 9. h3 Be6 10. c4 d5 11. Nbd2 h6 12. Qc2 d4 13. Bf4 Bd6 14. Bxd6 Qxd6 15. a3 Nh5 16. Ne4 Qd7 17. Nh2 Nf4 18. Qd2 Nxe2+ 19. Qxe2 Rfe8 20. Qd1 b6 21. f4 Bf5 22. Ng3 Re3 23. Nxf5 Qxf5 24. Rf3 Rxf3 25. Qxf3 Qd7 26. Ng4 Rb8 27. Qg3 Kh7 28. Re1 Re8 29. Rxe8 Qxe8 30. Qf3 f5 31. Nh2 a5 32. g4 fxg4 33. hxg4 Kg6 34. Kg2 Nd8 35. Kf2 c5 36. Qh3 Kf6 37. Qh4+ Kf7 38. Qh5+ Kf8 39. Qf5+ Qf7 40. Qe5 Qe7 41. Qf5+ Qf7 42. Qe5 Qe7 43. Nf3 Nc6 44. Qf5+ Qf7 45. Qc8+ Qe8 46. Qxe8+ Kxe8 47. Ne5 Nxe5 48. fxe5 Ke7 49. Kf3 Ke6 50. Ke4 g6 51. a4 h5 52. gxh5 gxh5 53. Kf4 h4 54. Kg4 Kxe5 55. Kxh4 Kf4 56. Kh3 Ke3 57. Kg2 Kxd3 58. Kf2 Kc2 59. Ke2 d3+ 0-1

[Event "POR-ch Women 2018"]
[Site "Braga"]
[Date "2018.09.05"]
[Round "5"]
[White "Pipiras, Filipa Fortuna"]
[Black "Oliveira, Maria Alice Ramos M"]
[Result "1-0"]
[ECO "E15"]
[WhiteElo "1803"]
[BlackElo "1572"]
[Annotator "NA"]
[PlyCount "84"]
[EventDate "2018.09.02"]
[EventType "tourn"]
[EventCountry "POR"]
[SourceTitle "playchess.com"]
[Source "ChessBase"]
[SourceQuality "1"]
[TimeControl "5400+30"]

1. d4 {[%emt 0:00:00]} Nf6 {[%emt 0:07:15]} 2. c4 {[%emt 0:00:29]} e6 {[%emt 0:00:14]} 3. Nf3 {[%emt 0:00:29]} b6 {[%emt 0:00:04]} 4. g3 {[%emt 0:00:39]} Bb4+ {[%emt 0:00:05]} 5. Bd2 {[%emt 0:01:54]} Bxd2+ {[%emt 0:00:08]} 6. Qxd2 {[%emt 0:00:30]} Bb7 {[%emt 0:00:30]} 7. Bg2 {[%emt 0:00:30]} O-O {[%emt 0:00:30]} 8. O-O {[%emt 0:00:30]} d5 {[%emt 0:00:30]} 9. Ne5 {[%emt 0:00:30]} Nbd7 {[%emt 0:00:30]} 10. Nc3 {[%emt 0:00:30]} Rc8 {[%emt 0:00:30]} 11. Rfd1 {[%emt 0:00:30]} Nxe5 {[%emt 0:00:30]} 12. dxe5 {[%emt 0:00:30]} Nd7 {[%emt 0:00:30]} 13. cxd5 {[%emt 0:00:30]} exd5 {[%emt 0:00:30]} 14. Bxd5 {[%emt 0:00:30]} Bxd5 {[%emt 0:00:30]} 15. Qxd5 {[%emt 0:00:30]} Nc5 {[%emt 0:00:30]} 16. Qc4 {[%emt 0:00:30]} Qg5 {[%emt 1:03:28]} 17. f4 {[%emt 0:28:44]} Qg4 {[%emt 0:00:14]} 18. Nd5 {[%emt 0:01:59]} Kh8 {[%emt 0:00:11]} 19. Kg2 {[%emt 0:02:19]} Qe6 {[%emt 0:01:43]} 20. b4 {[%emt 0:03:53]} Nd7 {[%emt 0:04:10]} 21. Rac1 {[%emt 0:02:24]} c5 {[%emt 0:00:24]} 22. Ne3 {[%emt 0:01:10]} Qc6+ {[%emt 0:01:16]} 23. Qd5 {[%emt 0:00:55]} Qxd5+ {[%emt 0:01:02]} 24. Rxd5 {[%emt 0:00:19]} Rc7 {[%emt 0:01:24]} 25. Rcd1 {[%emt 0:00:57]} Nb8 {[%emt 0:00:35]} 26. Rd8 {[%emt 0:00:23]} Rc8 {[%emt 0:00:06]} 27. Rxf8+ {[%emt 0:00:25]} Rxf8 {[%emt 0:00:05]} 28. bxc5 {[%emt 0:00:06]} bxc5 {[%emt 0:00:05]} 29. Nc4 {[%emt 0:00:40]} h6 {[%emt 0:00:37]} 30. Rd6 {[%emt 0:01:37]} Rc8 {[%emt 0:00:18]} 31. Kf3 {[%emt 0:00:19]} Kg8 {[%emt 0:00:15]} 32. Ke4 {[%emt 0:00:10]} Nc6 {[%emt 0:00:29]} 33. a3 {[%emt 0:00:44]} Nd4 {[%emt 0:00:07]} 34. e3 {[%emt 0:00:53]} Nc6 {[%emt 0:00:09]} 35. Rd7 {[%emt 0:01:00]} Rd8 {[%emt 0:01:39]} 36. Rc7 {[%emt 0:00:55]} Nb8 {[%emt 0:00:20]} 37. Nd6 {[%emt 0:00:27]} f6 {[%emt 0:00:18]} 38. Rxc5 {[%emt 0:00:20]} fxe5 {[%emt 0:00:30]} 39. fxe5 {[%emt 0:00:09]} Nd7 {[%emt 0:00:12]} 40. Rc8 {[%emt 0:01:26]} Rxc8 {[%emt 0:00:33]} 41. Nxc8 {[%emt 0:00:02]} a5 {[%emt 0:00:14]} 42. Kd5 {[%emt 0:00:17]} Kf7 {[%emt 0:00:05]} 1-0

[Event "POR-ch Women 2018"]
[Site "Braga"]
[Date "2018.09.05"]
[Round "5"]
[White "Soares, Sara Joana De Moura"]
[Black "Silva, Ana Ines Teixeira D"]
[Result "0-1"]
[ECO "C54"]
[WhiteElo "1431"]
[BlackElo "1890"]
[Annotator "NA"]
[PlyCount "80"]
[EventDate "2018.09.02"]
[EventType "tourn"]
[EventCountry "POR"]
[SourceTitle "playchess.com"]
[Source "ChessBase"]
[SourceQuality "1"]
[TimeControl "5400+30"]

1. e4 e5 2. Nf3 Nc6 3. Bc4 Bc5 4. c3 Nf6 5. d4 exd4 6. e5 d5 7. Bb5 Ne4 8. cxd4 Bb6 9. Nc3 O-O 10. Be3 Bg4 11. Be2 f6 12. exf6 Rxf6 13. O-O Qd6 14. a3 Raf8 15. Na4 Nd8 16. Rc1 Ne6 17. Nxb6 axb6 18. h3 Bh5 19. Qc2 c6 20. Rfe1 Bxf3 21. Bxf3 Rxf3 22. gxf3 N4g5 23. Bxg5 Nxg5 24. Kg2 Nxf3 25. Rh1 Nxd4 26. Qd3 Qf4 27. Qe3 Qf6 28. Rhe1 c5 29. Qe5 Qxf2+ 30. Kh1 Nf3 31. Qe2 Nxe1 32. Rxe1 Qxe2 33. Rxe2 Rf3 34. Kg2 Rb3 35. Rf2 d4 36. h4 g6 37. Kg1 Kg7 38. Rh2 c4 39. Kf1 c3 40. bxc3 Rb1+ 0-1

[Event "POR-ch Women 2018"]
[Site "Braga"]
[Date "2018.09.05"]
[Round "5"]
[White "Oliveira, Maria Elisa Ramos M"]
[Black "Silva, Mariana Sofia T"]
[Result "0-1"]
[ECO "B34"]
[WhiteElo "1333"]
[BlackElo "1924"]
[Annotator "NA"]
[PlyCount "84"]
[EventDate "2018.09.02"]
[EventType "tourn"]
[EventCountry "POR"]
[SourceTitle "playchess.com"]
[Source "ChessBase"]
[SourceQuality "1"]
[TimeControl "5400+30"]

1. e4 {[%emt 0:07:59]} c5 {[%emt 0:00:00]} 2. Nf3 {[%emt 0:00:32]} Nc6 {[%emt 0:00:00]} 3. d4 {[%emt 0:00:12]} cxd4 {[%emt 0:00:04]} 4. Nxd4 g6 {[%emt 0:00:05]} 5. Nc3 {[%emt 0:00:23]} Bg7 {[%emt 0:00:08]} 6. Be3 {[%emt 0:00:11]} Nf6 {[%emt 0:00:07]} 7. Be2 {[%emt 0:00:09]} O-O {[%emt 0:00:48]} 8. O-O {[%emt 0:00:11]} d5 {[%emt 0:00:30]} 9. exd5 {[%emt 0:01:34]} Nxd5 {[%emt 0:00:39]} 10. Nxd5 {[%emt 0:01:04]} Qxd5 {[%emt 0:00:52]} 11. Nxc6 {[%emt 0:00:22]} Qxc6 {[%emt 0:01:52]} 12. c3 {[%emt 0:00:32]} Be6 {[%emt 0:02:25]} 13. Qc2 {[%emt 0:01:31]} Bd5 {[%emt 0:02:54]} 14. f3 {[%emt 0:00:24]} Qe6 {[%emt 0:02:58]} 15. Qc1 {[%emt 0:03:04]} Rac8 {[%emt 0:08:31]} 16. a3 {[%emt 0:01:03]} a6 {[%emt 0:01:35]} 17. Re1 {[%emt 0:00:45]} Rfd8 {[%emt 0:04:30]} 18. Bf1 {[%emt 0:04:00]} Qc6 {[%emt 0:04:02]} 19. Bg5 {[%emt 0:00:59]} Qc5+ {[%emt 0:08:29]} 20. Qe3 {[%emt 0:04:30]} Qxe3+ {[%emt 0:01:10]} 21. Bxe3 {[%emt 0:00:47]} Bb3 {[%emt 0:01:26]} 22. Bg5 {[%emt 0:01:53]} f6 {[%emt 0:00:20]} 23. Be3 {[%emt 0:02:44]} e5 {[%emt 0:01:06]} 24. Rac1 {[%emt 0:00:13]} b5 {[%emt 0:01:10]} 25. Bb6 {[%emt 0:01:20]} Rd2 {[%emt 0:03:53]} 26. Re2 {[%emt 0:00:18]} Bh6 {[%emt 0:02:37]} 27. Rxd2 {[%emt 0:01:14]} Bxd2 {[%emt 0:00:03]} 28. Ra1 {[%emt 0:00:49]} Rc6 {[%emt 0:00:21]} 29. Bf2 {[%emt 0:01:02]} Rd6 {[%emt 0:00:48]} 30. Be1 {[%emt 0:00:29]} Be3+ {[%emt 0:00:24]} 31. Kh1 {[%emt 0:00:36]} Kf7 {[%emt 0:01:18]} 32. g3 {[%emt 0:00:32]} Rd1 {[%emt 0:08:30]} 33. Rxd1 {[%emt 0:00:22]} Bxd1 {[%emt 0:00:01]} 34. c4 {[%emt 0:01:19]} Bxf3+ {[%emt 0:00:06]} 35. Bg2 {[%emt 0:00:11]} Bxg2+ {[%emt 0:00:12]} 36. Kxg2 {[%emt 0:00:06]} bxc4 {[%emt 0:00:10]} 37. Kf3 {[%emt 0:00:11]} Bd4 {[%emt 0:00:14]} 38. Bc3 {[%emt 0:00:09]} Bxc3 {[%emt 0:00:49]} 39. bxc3 {[%emt 0:00:07]} Ke6 {[%emt 0:00:10]} 40. Ke4 {[%emt 0:00:21]} f5+ {[%emt 0:00:17]} 41. Ke3 {[%emt 0:00:07]} Kd5 {[%emt 0:00:10]} 42. a4 {[%emt 0:00:08]} Kc5 {[%emt 0:01:08] Kd4+} 0-1

[Event "POR-ch Women 2018"]
[Site "Braga"]
[Date "2018.09.05"]
[Round "5"]
[White "Areal, Maria Beatriz Moura"]
[Black "Pintor, Ariana"]
[Result "0-1"]
[ECO "B19"]
[WhiteElo "1051"]
[BlackElo "1928"]
[Annotator "NA"]
[PlyCount "66"]
[EventDate "2018.09.02"]
[EventType "tourn"]
[EventCountry "POR"]
[SourceTitle "playchess.com"]
[Source "ChessBase"]
[SourceQuality "1"]
[TimeControl "5400+30"]

1. e4 {[%emt 0:00:14]} c6 {[%emt 0:00:42]} 2. d4 {[%emt 0:00:15]} d5 {[%emt 0:00:04]} 3. Nc3 {[%emt 0:00:28]} dxe4 {[%emt 0:00:06]} 4. Nxe4 {[%emt 0:00:16]} Bf5 {[%emt 0:00:06]} 5. Ng3 {[%emt 0:00:10]} Bg6 {[%emt 0:00:05]} 6. Nf3 {[%emt 0:00:35]} Nd7 {[%emt 0:00:31]} 7. h4 {[%emt 0:00:35]} h6 {[%emt 0:00:50]} 8. h5 {[%emt 0:01:09]} Bh7 {[%emt 0:00:06]} 9. Bd3 {[%emt 0:00:36]} Bxd3 10. Qxd3 {[%emt 0:00:15]} e6 {[%emt 0:01:39]} 11. Bf4 {[%emt 0:01:08]} Qa5+ {[%emt 0:04:09]} 12. Bd2 {[%emt 0:03:36]} Bb4 {[%emt 0:04:36]} 13. c3 {[%emt 0:00:22]} Be7 {[%emt 0:00:42]} 14. c4 {[%emt 0:01:09]} Bb4 {[%emt 0:01:58]} 15. O-O {[%emt 0:03:34]} Bxd2 {[%emt 0:00:45]} 16. Qxd2 {[%emt 0:00:18]} Qxd2 {[%emt 0:01:38]} 17. Nxd2 {[%emt 0:00:07]} Ngf6 {[%emt 0:00:07]} 18. Nde4 {[%emt 0:03:27]} O-O {[%emt 0:01:50]} 19. Rfe1 {[%emt 0:12:17]} b5 {[%emt 0:23:20]} 20. c5 {[%emt 0:14:39]} Nd5 {[%emt 0:03:25]} 21. Rec1 {[%emt 0:05:31]} N7f6 {[%emt 0:04:43]} 22. a3 {[%emt 0:03:21]} Rfd8 {[%emt 0:03:04]} 23. Nxf6+ {[%emt 0:02:38]} Nxf6 {[%emt 0:00:11]} 24. Rd1 {[%emt 0:00:14]} Rd5 {[%emt 0:00:41]} 25. a4 {[%emt 0:09:41]} b4 {[%emt 0:01:00]} 26. Rd3 {[%emt 0:07:10]} Nxh5 {[%emt 0:02:00]} 27. Ne4 {[%emt 0:03:08]} Nf4 {[%emt 0:02:10]} 28. Rd2 {[%emt 0:01:27]} Rxd4 {[%emt 0:01:13]} 29. g3 {[%emt 0:03:22]} Rxe4 {[%emt 0:04:40]} 30. gxf4 {[%emt 0:01:21]} Rc4 {[%emt 0:00:12]} 31. Kg2 {[%emt 0:00:48]} Rxc5 {[%emt 0:00:15]} 32. Kg3 {[%emt 0:00:08]} Rc8 {[%emt 0:01:17]} 33. f3 {[%emt 0:01:33]} a5 {[%emt 0:00:45]} 0-1